[Event "GER-ch Youth U12 2019"]
[Site "Willingen"]
[Date "2019.06.09"]
[Round "1.2"]
[White "Phan Trong, Dai"]
[Black "Deuer, Marius"]
[Result "0-1"]
[ECO "A22"]
[WhiteElo "1657"]
[BlackElo "1961"]
[Annotator "NA"]
[PlyCount "78"]
[EventDate "2019.06.07"]
[EventType "swiss"]
[EventRounds "9"]
[EventCountry "GER"]
[SourceTitle "playchess.com"]
[Source "ChessBase"]
[SourceQuality "1"]
[TimeControl "40/4500+30:900+30"]

1. c4 {[%emt 0:00:00]} e5 {[%emt 0:00:00]} 2. Nc3 {[%emt 0:00:00]} Nf6 {[%emt 0:00:00]} 3. g3 {[%emt 0:00:00]} c6 {[%emt 0:00:00]} 4. Bg2 {[%emt 0:00:00]} d5 {[%emt 0:00:00]} 5. cxd5 {[%emt 0:00:00]} cxd5 {[%emt 0:00:00]} 6. d3 {[%emt 0:00:00]} d4 {[%emt 0:00:00]} 7. Ne4 {[%emt 0:00:00]} Nxe4 {[%emt 0:00:00]} 8. Bxe4 {[%emt 0:00:00]} Nc6 {[%emt 0:00:00]} 9. Bd2 {[%emt 0:00:00]} Be7 {[%emt 0:00:00]} 10. Bg2 {[%emt 0:00:00]} Be6 {[%emt 0:00:00]} 11. Nf3 {[%emt 0:00:00]} O-O {[%emt 0:00:00]} 12. O-O {[%emt 0:00:00]} h6 {[%emt 0:00:00]} 13. a3 {[%emt 0:00:00]} Qd6 {[%emt 0:00:00]} 14. b4 {[%emt 0:00:00]} b5 {[%emt 0:04:44]} 15. Qc2 {[%emt 0:00:00]} Rfc8 {[%emt 0:06:15]} 16. Qb2 {[%emt 0:00:48]} Bf6 {[%emt 0:10:54]} 17. Rac1 {[%emt 0:01:13]} Rc7 {[%emt 0:20:47]} 18. Rc5 {[%emt 0:02:37]} a6 {[%emt 0:07:53]} 19. Rfc1 {[%emt 0:00:13]} Rac8 {[%emt 0:00:40]} 20. Ne1 {[%emt 0:01:41]} Ne7 {[%emt 0:08:10]} 21. Rxc7 {[%emt 0:04:09]} Rxc7 {[%emt 0:00:18]} 22. Rxc7 {[%emt 0:00:08]} Qxc7 {[%emt 0:00:04]} 23. Qc2 {[%emt 0:01:08]} Qb6 {[%emt 0:05:52]} 24. e4 {[%emt 0:01:35]} Nc6 {[%emt 0:06:42]} 25. f4 {[%emt 0:00:27]} Be7 {[%emt 0:01:13]} 26. Nf3 {[%emt 0:00:12]} f6 {[%emt 0:02:51]} 27. Qb2 {[%emt 0:02:19]} Kh7 {[%emt 0:02:58]} 28. Kf2 {[%emt 0:00:38]} Bd6 {[%emt 0:00:44]} 29. h3 {[%emt 0:01:40]} Qc7 {[%emt 0:00:58]} 30. Qc1 {[%emt 0:00:25]} exf4 {[%emt 0:01:08]} 31. gxf4 {[%emt 0:00:10]} Qd7 {[%emt 0:00:50]} 32. Qc2 {[%emt 0:01:02]} g5 {[%emt 0:01:30]} 33. fxg5 {[%emt 0:02:16]} hxg5 {[%emt 0:00:49]} 34. Bxg5 {[%emt 0:00:23]} fxg5 {[%emt 0:00:17]} 35. Nxg5+ {[%emt 0:00:10]} Kg6 {[%emt 0:00:12]} 36. Nxe6 {[%emt 0:00:10]} Qxe6 37. Qe2 {[%emt 0:01:24]} Qf6+ {[%emt 0:01:25]} 38. Ke1 {[%emt 0:00:13]} Bg3+ {[%emt 0:00:24]} 39. Kd1 {[%emt 0:00:13]} Ne5 {[%emt 0:00:23] normal} 0-1

[Event "GER-ch Youth U12 2019"]
[Site "Willingen"]
[Date "2019.06.09"]
[Round "1.3"]
[White "Sosa Costa, Leonardo"]
[Black "Bolz, Jannis"]
[Result "1-0"]
[ECO "C45"]
[WhiteElo "1945"]
[BlackElo "1618"]
[Annotator "NA"]
[PlyCount "64"]
[EventDate "2019.06.07"]
[EventType "swiss"]
[EventRounds "9"]
[EventCountry "GER"]
[SourceTitle "playchess.com"]
[Source "ChessBase"]
[SourceQuality "1"]
[TimeControl "40/4500+30:900+30"]

1. e4 {[%emt 0:00:00]} e5 {[%emt 0:00:00]} 2. Nf3 {[%emt 0:00:00]} Nc6 {[%emt 0:00:00]} 3. d4 {[%emt 0:00:00]} exd4 {[%emt 0:00:00]} 4. Nxd4 {[%emt 0:00:00]} Bc5 {[%emt 0:00:00]} 5. Nb3 {[%emt 0:00:00]} Bb6 {[%emt 0:00:00]} 6. Nc3 {[%emt 0:00:00]} d6 {[%emt 0:00:00]} 7. Qe2 {[%emt 0:00:00]} Nd4 {[%emt 0:05:33]} 8. Nxd4 {[%emt 0:06:34]} Bxd4 {[%emt 0:00:06]} 9. Qd3 {[%emt 0:00:45]} Qf6 {[%emt 0:00:46]} 10. Be3 {[%emt 0:00:09]} Bxe3 {[%emt 0:02:22]} 11. Qxe3 {[%emt 0:00:08]} Ne7 {[%emt 0:01:20]} 12. Bc4 {[%emt 0:17:48]} O-O {[%emt 0:01:32]} 13. O-O {[%emt 0:02:18]} Bd7 {[%emt 0:05:14]} 14. Rad1 {[%emt 0:08:28]} Qh4 {[%emt 0:04:36]} 15. Qg3 {[%emt 0:09:33]} Qxg3 {[%emt 0:01:46]} 16. hxg3 {[%emt 0:00:12]} Be6 {[%emt 0:03:50]} 17. Bd5 {[%emt 0:06:30]} Rfe8 {[%emt 0:05:33]} 18. Rfe1 {[%emt 0:03:28]} Nxd5 {[%emt 0:04:34]} 19. exd5 {[%emt 0:04:15]} Bf5 {[%emt 0:01:22]} 20. Nb5 {[%emt 0:01:50]} a6 {[%emt 0:02:18]} 21. Nxc7 {[%emt 0:01:42]} Rxe1+ {[%emt 0:00:13]} 22. Rxe1 {[%emt 0:00:04]} Rc8 {[%emt 0:02:53]} 23. Re8+ {[%emt 0:00:18]} Rxe8 {[%emt 0:00:17]} 24. Nxe8 {[%emt 0:00:04]} Bxc2 {[%emt 0:00:38]} 25. Nxd6 {[%emt 0:00:55]} b5 {[%emt 0:00:11]} 26. Nb7 {[%emt 0:02:43]} Kf8 {[%emt 0:00:55]} 27. Nc5 {[%emt 0:00:33]} a5 {[%emt 0:00:16]} 28. d6 {[%emt 0:00:08]} Bb1 {[%emt 0:02:40]} 29. a3 {[%emt 0:00:07]} Ba2 {[%emt 0:00:15]} 30. f4 {[%emt 0:01:10]} Bc4 {[%emt 0:01:30]} 31. Kf2 {[%emt 0:01:09]} Ke8 {[%emt 0:00:55]} 32. g4 {[%emt 0:00:43]} h6 {[%emt 0:01:09] normal} 1-0

[Event "GER-ch Youth U12 2019"]
[Site "Willingen"]
[Date "2019.06.09"]
[Round "1.4"]
[White "Tomasjan, Samuel"]
[Black "Hagner, Bennet"]
[Result "1-0"]
[ECO "B13"]
[WhiteElo "1476"]
[BlackElo "1900"]
[Annotator "NA"]
[PlyCount "95"]
[EventDate "2019.06.07"]
[EventType "swiss"]
[EventRounds "9"]
[EventCountry "GER"]
[SourceTitle "playchess.com"]
[Source "ChessBase"]
[SourceQuality "1"]
[TimeControl "40/4500+30:900+30"]

1. e4 {[%emt 0:00:00]} c6 {[%emt 0:00:00]} 2. d4 {[%emt 0:00:00]} d5 {[%emt 0:00:00]} 3. exd5 {[%emt 0:00:00]} cxd5 {[%emt 0:00:00]} 4. c4 {[%emt 0:00:00]} Nf6 {[%emt 0:00:00]} 5. Nc3 {[%emt 0:00:00]} Nc6 {[%emt 0:00:00]} 6. Bg5 {[%emt 0:00:00]} dxc4 {[%emt 0:00:00]} 7. d5 {[%emt 0:00:00]} Ne5 {[%emt 0:00:00]} 8. Bxc4 {[%emt 0:00:00]} Nxc4 {[%emt 0:00:00]} 9. Qa4+ {[%emt 0:00:00]} Bd7 {[%emt 0:00:00]} 10. Qxc4 {[%emt 0:00:00]} e6 {[%emt 0:01:29]} 11. Rd1 {[%emt 0:00:00]} exd5 {[%emt 0:05:33]} 12. Nxd5 {[%emt 0:00:00]} Bd6 {[%emt 0:08:28]} 13. Qe2+ {[%emt 0:21:47]} Be6 {[%emt 0:02:11]} 14. Bxf6 {[%emt 0:00:53]} gxf6 {[%emt 0:00:22]} 15. Nxf6+ {[%emt 0:10:04]} Qxf6 {[%emt 0:05:17]} 16. Rxd6 {[%emt 0:00:09]} Ke7 {[%emt 0:08:34]} 17. Rd2 {[%emt 0:04:24]} Qg6 {[%emt 0:04:17]} 18. f4 {[%emt 0:04:14]} Rhd8 {[%emt 0:05:03]} 19. Nf3 {[%emt 0:03:48]} Qb1+ {[%emt 0:01:13]} 20. Rd1 {[%emt 0:02:31]} Rxd1+ {[%emt 0:00:32]} 21. Qxd1 {[%emt 0:00:01]} Qxa2 {[%emt 0:06:35]} 22. O-O {[%emt 0:07:40]} Qxb2 {[%emt 0:01:08]} 23. Re1 {[%emt 0:01:51]} Rd8 {[%emt 0:02:34]} 24. Qa4 {[%emt 0:01:04]} Rg8 {[%emt 0:01:32]} 25. Nh4 {[%emt 0:04:15]} Qb6+ {[%emt 0:04:07]} 26. Kh1 {[%emt 0:00:41]} Rg4 {[%emt 0:09:30]} 27. Nf5+ {[%emt 0:02:27]} Kf6 {[%emt 0:01:25]} 28. Ne3 {[%emt 0:05:02]} Rh4 {[%emt 0:03:07]} 29. Qa1+ {[%emt 0:02:44]} Kg6 {[%emt 0:00:36]} 30. f5+ {[%emt 0:02:35]} Kh5 {[%emt 0:02:17]} 31. Qg7 {[%emt 0:09:07]} Qb4 {[%emt 0:05:39]} 32. Qxh7+ {[%emt 0:01:15]} Kg5 {[%emt 0:00:05]} 33. Qg7+ {[%emt 0:00:00]} Kh5 {[%emt 0:00:26]} 34. g4+ {[%emt 0:01:07]} Rxg4 {[%emt 0:00:09]} 35. Qxg4+ {[%emt 0:00:33]} Qxg4 36. Nxg4 Bd5+ {[%emt 0:00:27]} 37. Kg1 {[%emt 0:00:25]} Kxg4 {[%emt 0:00:08]} 38. Re5 {[%emt 0:00:44]} Bc6 {[%emt 0:00:50]} 39. f6 {[%emt 0:00:17]} a6 {[%emt 0:01:29]} 40. Re7 {[%emt 0:00:36]} Kf5 {[%emt 0:09:11]} 41. Rxf7 {[%emt 0:15:14]} Ke6 {[%emt 0:00:00]} 42. Rf8 {[%emt 0:00:00]} a5 {[%emt 0:00:00]} 43. Kf2 {[%emt 0:00:00]} a4 {[%emt 0:00:00]} 44. Ke3 {[%emt 0:00:00]} b5 {[%emt 0:00:00]} 45. Rc8 {[%emt 0:00:00]} Bd5 {[%emt 0:00:00]} 46. Kd4 {[%emt 0:00:00]} Bc4 {[%emt 0:11:37]} 47. Rc6+ {[%emt 0:00:00]} Kf5 {[%emt 0:00:36]} 48. Rxc4 {[%emt 0:00:00] normal} 1-0

[Event "GER-ch Youth U12 2019"]
[Site "Willingen"]
[Date "2019.06.09"]
[Round "1.5"]
[White "Foerster-Yialamas, Lucas"]
[Black "Kageler, Anton Paul"]
[Result "1-0"]
[ECO "B76"]
[WhiteElo "1981"]
[BlackElo "1563"]
[Annotator "NA"]
[PlyCount "74"]
[EventDate "2019.06.07"]
[EventType "swiss"]
[EventRounds "9"]
[EventCountry "GER"]
[SourceTitle "playchess.com"]
[Source "ChessBase"]
[SourceQuality "1"]
[TimeControl "40/4500+30:900+30"]

1. e4 {[%emt 0:00:00]} c5 {[%emt 0:00:00]} 2. Nf3 {[%emt 0:00:00]} d6 {[%emt 0:00:00]} 3. d4 {[%emt 0:00:00]} cxd4 {[%emt 0:00:00]} 4. Nxd4 {[%emt 0:00:00]} Nf6 {[%emt 0:00:00]} 5. Nc3 {[%emt 0:00:00]} g6 {[%emt 0:00:00]} 6. f3 {[%emt 0:00:00]} Bg7 {[%emt 0:00:00]} 7. Be3 {[%emt 0:00:00]} O-O {[%emt 0:00:00]} 8. Qd2 {[%emt 0:00:00]} Nc6 {[%emt 0:00:00]} 9. O-O-O {[%emt 0:00:00]} d5 {[%emt 0:00:00]} 10. exd5 {[%emt 0:00:00]} Nxd5 {[%emt 0:00:00]} 11. Nxd5 {[%emt 0:00:00]} Qxd5 {[%emt 0:00:00]} 12. Nxc6 {[%emt 0:00:00]} Qxc6 {[%emt 0:00:00]} 13. Qb4 {[%emt 0:01:14]} Bf5 {[%emt 0:01:22]} 14. Bd3 {[%emt 0:00:56]} Bxd3 {[%emt 0:06:45]} 15. Rxd3 {[%emt 0:00:09]} Rac8 {[%emt 0:03:20]} 16. Qb3 {[%emt 0:02:56]} a5 {[%emt 0:12:17]} 17. a4 {[%emt 0:01:13]} b6 {[%emt 0:26:37]} 18. Rhd1 {[%emt 0:00:43]} Rb8 {[%emt 0:05:04]} 19. Qb5 {[%emt 0:03:40]} Rbc8 {[%emt 0:12:14]} 20. Qxc6 {[%emt 0:00:21]} Rxc6 {[%emt 0:00:06]} 21. Rd7 {[%emt 0:00:50]} Bf6 {[%emt 0:02:05]} 22. Bh6 {[%emt 0:00:23]} Re8 {[%emt 0:03:40]} 23. R1d3 {[%emt 0:03:28]} e6 {[%emt 0:01:21]} 24. Rb7 {[%emt 0:01:34]} Rec8 {[%emt 0:00:39]} 25. c3 {[%emt 0:00:16]} Rc4 {[%emt 0:03:53]} 26. g3 {[%emt 0:01:52]} Bg7 {[%emt 0:05:25]} 27. Bxg7 {[%emt 0:01:27]} Kxg7 {[%emt 0:00:04]} 28. Rdd7 {[%emt 0:01:09]} Rf8 {[%emt 0:01:04]} 29. Rxb6 {[%emt 0:00:42]} Kf6 {[%emt 0:00:43]} 30. Kb1 {[%emt 0:01:39]} Rfc8 {[%emt 0:01:29]} 31. Rbb7 {[%emt 0:00:16]} Rf8 {[%emt 0:00:10]} 32. Ra7 {[%emt 0:00:26]} Rc5 {[%emt 0:00:52]} 33. Rd4 {[%emt 0:01:57]} Rf5 {[%emt 0:01:27]} 34. Ka2 {[%emt 0:01:45]} Rxf3 {[%emt 0:00:48]} 35. Rxa5 {[%emt 0:00:10]} e5 {[%emt 0:00:04]} 36. Rd2 {[%emt 0:03:07]} e4 {[%emt 0:00:21]} 37. Rad5 {[%emt 0:00:34]} e3 {[%emt 0:00:21] normal} 1-0

[Event "GER-ch Youth U12 2019"]
[Site "Willingen"]
[Date "2019.06.09"]
[Round "1.6"]
[White "Schreidl, Michael"]
[Black "Hänselmann, Hendrik"]
[Result "1-0"]
[ECO "B48"]
[WhiteElo "1586"]
[BlackElo "1819"]
[Annotator "NA"]
[PlyCount "37"]
[EventDate "2019.06.07"]
[EventType "swiss"]
[EventRounds "9"]
[EventCountry "GER"]
[SourceTitle "playchess.com"]
[Source "ChessBase"]
[SourceQuality "1"]
[TimeControl "40/4500+30:900+30"]

1. e4 {[%emt 0:00:00]} c5 {[%emt 0:00:00]} 2. Nf3 {[%emt 0:00:00]} e6 {[%emt 0:00:00]} 3. d4 {[%emt 0:00:00]} cxd4 {[%emt 0:00:00]} 4. Nxd4 {[%emt 0:00:00]} Nc6 {[%emt 0:00:00]} 5. Nc3 {[%emt 0:00:00]} Qc7 {[%emt 0:00:00]} 6. Be3 {[%emt 0:00:00]} a6 {[%emt 0:00:00]} 7. Bd3 {[%emt 0:00:00]} Nf6 {[%emt 0:00:00]} 8. O-O {[%emt 0:00:00]} Nxd4 {[%emt 0:00:00]} 9. Bxd4 {[%emt 0:00:00]} Bc5 {[%emt 0:00:00]} 10. Bxc5 {[%emt 0:00:00]} Qxc5 {[%emt 0:00:00]} 11. Qe2 {[%emt 0:00:00]} d6 {[%emt 0:00:00]} 12. Rad1 {[%emt 0:04:36]} O-O {[%emt 0:00:00]} 13. Kh1 {[%emt 0:03:44]} Bd7 {[%emt 0:00:00]} 14. f4 {[%emt 0:03:03]} Bc6 {[%emt 0:02:53]} 15. Rf3 {[%emt 0:11:32]} d5 {[%emt 0:06:40]} 16. e5 {[%emt 0:09:19]} Nd7 {[%emt 0:23:43]} 17. Rg3 {[%emt 0:03:29]} Qe7 {[%emt 0:04:53]} 18. Bxh7+ {[%emt 0:09:26]} Kxh7 {[%emt 0:03:48]} 19. Qh5+ {[%emt 0:01:13] normal} 1-0

[Event "GER-ch Youth U12 2019"]
[Site "Willingen"]
[Date "2019.06.09"]
[Round "1.7"]
[White "Freude, Max"]
[Black "Krüger, Arthur"]
[Result "1/2-1/2"]
[ECO "A01"]
[WhiteElo "1707"]
[BlackElo "1613"]
[Annotator "NA"]
[PlyCount "74"]
[EventDate "2019.06.07"]
[EventType "swiss"]
[EventRounds "9"]
[EventCountry "GER"]
[SourceTitle "playchess.com"]
[Source "ChessBase"]
[SourceQuality "1"]
[TimeControl "40/4500+30:900+30"]

1. b3 {[%emt 0:00:00]} e5 {[%emt 0:00:00]} 2. Bb2 {[%emt 0:00:00]} Nc6 {[%emt 0:00:00]} 3. e3 {[%emt 0:00:00]} Nf6 {[%emt 0:00:00]} 4. Bb5 {[%emt 0:00:00]} e4 {[%emt 0:00:00]} 5. d4 {[%emt 0:00:00]} a6 {[%emt 0:00:00]} 6. Bxc6 {[%emt 0:00:00]} dxc6 {[%emt 0:00:00]} 7. c4 {[%emt 0:00:00]} Bd6 {[%emt 0:00:00]} 8. Ne2 {[%emt 0:06:47]} Bg4 {[%emt 0:06:01]} 9. c5 {[%emt 0:10:51]} Be7 {[%emt 0:03:35]} 10. Nbc3 {[%emt 0:03:13]} O-O {[%emt 0:08:32]} 11. Qc2 {[%emt 0:07:37]} Bxe2 {[%emt 0:02:24]} 12. Qxe2 {[%emt 0:01:59]} Re8 {[%emt 0:01:21]} 13. O-O {[%emt 0:06:28]} Qd7 {[%emt 0:05:52]} 14. Rac1 {[%emt 0:06:20]} Rad8 {[%emt 0:02:58]} 15. Rfd1 {[%emt 0:05:26]} Qf5 {[%emt 0:04:18]} 16. a4 {[%emt 0:05:02]} a5 {[%emt 0:03:53]} 17. Rc2 {[%emt 0:03:29]} Qe6 {[%emt 0:09:37]} 18. Qc4 {[%emt 0:02:33]} Qg4 {[%emt 0:09:29]} 19. Rcd2 {[%emt 0:03:52]} Nd5 {[%emt 0:02:28]} 20. Nxd5 Rxd5 {[%emt 0:00:23]} 21. Qf1 {[%emt 0:06:16]} Red8 {[%emt 0:00:49]} 22. Bc3 {[%emt 0:00:40]} b6 {[%emt 0:01:58]} 23. cxb6 {[%emt 0:00:22]} cxb6 {[%emt 0:00:05]} 24. f3 {[%emt 0:02:19]} Qg5 {[%emt 0:03:20]} 25. f4 {[%emt 0:01:21]} Qg4 {[%emt 0:00:59]} 26. Qe2 {[%emt 0:01:44]} Qxe2 {[%emt 0:01:06]} 27. Rxe2 {[%emt 0:00:02]} f5 {[%emt 0:02:24]} 28. Kf2 {[%emt 0:01:54]} Bf6 {[%emt 0:01:29]} 29. Red2 {[%emt 0:01:01]} Kf7 {[%emt 0:01:16]} 30. Ke2 {[%emt 0:01:13]} Ke6 {[%emt 0:00:22]} 31. Rc1 {[%emt 0:01:46]} c5 {[%emt 0:03:23]} 32. dxc5 {[%emt 0:01:25]} Bxc3 {[%emt 0:00:59]} 33. Rxd5 {[%emt 0:00:08]} Rxd5 {[%emt 0:00:22]} 34. Rxc3 {[%emt 0:01:14]} bxc5 {[%emt 0:04:53]} 35. g3 {[%emt 0:01:45]} Kd6 {[%emt 0:00:29]} 36. Ke1 {[%emt 0:01:47]} Ke6 {[%emt 0:02:16]} 37. Ke2 {[%emt 0:00:09]} Kd6 {[%emt 0:03:20] normal} 1/2-1/2

[Event "GER-ch Youth U12 2019"]
[Site "Willingen"]
[Date "2019.06.09"]
[Round "1.8"]
[White "Duong, Quang Bach"]
[Black "Metzdorf, Matteo"]
[Result "0-1"]
[ECO "C09"]
[WhiteElo "1647"]
[BlackElo "1859"]
[Annotator "NA"]
[PlyCount "168"]
[EventDate "2019.06.07"]
[EventType "swiss"]
[EventRounds "9"]
[EventCountry "GER"]
[SourceTitle "playchess.com"]
[Source "ChessBase"]
[SourceQuality "1"]
[TimeControl "40/4500+30:900+30"]

1. e4 {[%emt 0:00:00]} e6 {[%emt 0:00:00]} 2. d4 {[%emt 0:00:00]} d5 {[%emt 0:00:00]} 3. Nd2 {[%emt 0:00:00]} c5 {[%emt 0:00:00]} 4. exd5 {[%emt 0:00:00]} exd5 {[%emt 0:00:00]} 5. Ngf3 {[%emt 0:00:00]} Nc6 {[%emt 0:00:00]} 6. Bb5 {[%emt 0:00:00]} Bd6 {[%emt 0:00:00]} 7. dxc5 {[%emt 0:00:00]} Bxc5 {[%emt 0:00:00]} 8. Nb3 {[%emt 0:00:00]} Bb6 {[%emt 0:00:00]} 9. O-O {[%emt 0:00:00]} Nge7 {[%emt 0:00:00]} 10. h3 {[%emt 0:00:00]} O-O {[%emt 0:02:04]} 11. Nbd4 {[%emt 0:00:00]} Qd6 {[%emt 0:05:25]} 12. Be3 {[%emt 0:02:44]} Bd7 {[%emt 0:08:34]} 13. Bd3 {[%emt 0:05:15]} Nxd4 {[%emt 0:14:57]} 14. Nxd4 {[%emt 0:02:55]} Bc7 {[%emt 0:02:06]} 15. g3 {[%emt 0:05:34]} a6 {[%emt 0:08:43]} 16. c3 {[%emt 0:07:04]} g6 {[%emt 0:04:20]} 17. Kg2 {[%emt 0:02:52]} f5 {[%emt 0:03:42]} 18. Qf3 {[%emt 0:06:11]} Qf6 {[%emt 0:02:03]} 19. Ne2 {[%emt 0:01:21]} Bc6 {[%emt 0:04:11]} 20. Bd4 {[%emt 0:02:22]} Be5 {[%emt 0:01:40]} 21. Rae1 {[%emt 0:01:14]} Bd7 {[%emt 0:08:07]} 22. Nf4 {[%emt 0:03:50]} Bxd4 {[%emt 0:01:16]} 23. Nxd5 {[%emt 0:00:59]} Nxd5 {[%emt 0:02:30]} 24. Qxd5+ {[%emt 0:00:11]} Rf7 {[%emt 0:02:28]} 25. Qxd4 {[%emt 0:00:11]} Bc6+ {[%emt 0:01:32]} 26. Kh2 {[%emt 0:01:01]} Qxd4 {[%emt 0:01:08]} 27. cxd4 {[%emt 0:00:05]} Rd8 {[%emt 0:00:08]} 28. Bc4 {[%emt 0:00:05]} Bd5 {[%emt 0:00:44]} 29. Bxd5 {[%emt 0:00:42]} Rxd5 {[%emt 0:00:07]} 30. Re8+ {[%emt 0:01:57]} Kg7 {[%emt 0:00:24]} 31. Rd1 {[%emt 0:00:07]} Rfd7 {[%emt 0:03:13]} 32. Kg2 {[%emt 0:00:26]} Kf6 {[%emt 0:02:29]} 33. Rb8 {[%emt 0:01:05]} Ra5 {[%emt 0:03:50]} 34. a3 {[%emt 0:00:38]} Rad5 {[%emt 0:01:58]} 35. Kf3 {[%emt 0:00:18]} Rb5 {[%emt 0:01:22]} 36. Rd2 {[%emt 0:00:17]} Rb3+ {[%emt 0:00:37]} 37. Ke2 {[%emt 0:00:50]} Re7+ {[%emt 0:00:30]} 38. Kd1 {[%emt 0:00:14]} Rd7 {[%emt 0:01:28]} 39. Re8 {[%emt 0:01:11]} Rb5 {[%emt 0:01:27]} 40. Re3 {[%emt 0:01:02]} Rbd5 {[%emt 0:01:03]} 41. Red3 {[%emt 0:15:45]} Kf7 {[%emt 0:15:43]} 42. b4 {[%emt 0:00:53]} Ke6 {[%emt 0:00:00]} 43. Ke2 {[%emt 0:00:00]} Kf6 {[%emt 0:00:00]} 44. f4 {[%emt 0:00:00]} Re7+ {[%emt 0:00:00]} 45. Kd1 {[%emt 0:00:00]} Red7 {[%emt 0:00:00]} 46. Kc2 {[%emt 0:00:00]} Rc7+ {[%emt 0:00:00]} 47. Rc3 {[%emt 0:00:00]} Rcd7 {[%emt 0:00:00]} 48. Rc4 {[%emt 0:00:00]} Ke6 {[%emt 0:00:00]} 49. Kc3 {[%emt 0:00:00]} b5 {[%emt 0:00:00]} 50. Rc6+ {[%emt 0:00:00]} R7d6 {[%emt 0:00:00]} 51. Rxd6+ {[%emt 0:00:00]} Kxd6 {[%emt 0:00:00]} 52. Re2 {[%emt 0:00:00]} Kd7 {[%emt 0:00:00]} 53. Re5 {[%emt 0:00:00]} Kd6 {[%emt 0:00:00]} 54. Kd3 {[%emt 0:00:00]} Kc6 {[%emt 0:01:20]} 55. Re7 {[%emt 0:00:00]} h6 {[%emt 0:00:27]} 56. Re6+ {[%emt 0:00:00]} Rd6 {[%emt 0:00:07]} 57. d5+ {[%emt 0:00:00]} Kxd5 {[%emt 0:01:51]} 58. Rxd6+ {[%emt 0:00:00]} Kxd6 {[%emt 0:00:05]} 59. Kd4 {[%emt 0:00:00]} g5 {[%emt 0:01:22]} 60. fxg5 {[%emt 0:00:00]} hxg5 {[%emt 0:00:03]} 61. h4 {[%emt 0:00:00]} f4 {[%emt 0:03:23]} 62. hxg5 {[%emt 0:14:25]} fxg3 {[%emt 0:00:08]} 63. Ke3 {[%emt 0:00:06]} Ke5 {[%emt 0:00:31]} 64. Kf3 {[%emt 0:00:07]} Kf5 {[%emt 0:00:29]} 65. Kxg3 {[%emt 0:00:06]} Kxg5 {[%emt 0:01:17]} 66. Kf3 {[%emt 0:00:07]} Kf5 {[%emt 0:00:04]} 67. Ke3 {[%emt 0:00:02]} Ke5 {[%emt 0:00:04]} 68. Kd3 {[%emt 0:00:10]} Kd5 {[%emt 0:00:05]} 69. Kc3 {[%emt 0:00:08]} Ke4 {[%emt 0:00:13]} 70. Kb3 {[%emt 0:00:09]} Kd4 {[%emt 0:00:10]} 71. a4 {[%emt 0:00:04]} Kd3 {[%emt 0:00:26]} 72. axb5 {[%emt 0:02:02]} axb5 {[%emt 0:01:48]} 73. Kb2 {[%emt 0:00:55]} Kc4 {[%emt 0:00:11]} 74. Ka3 {[%emt 0:00:04]} Kc3 {[%emt 0:00:04]} 75. Ka2 {[%emt 0:00:03]} Kxb4 {[%emt 0:00:05]} 76. Kb2 {[%emt 0:00:04]} Kc4 {[%emt 0:00:04]} 77. Kc2 {[%emt 0:00:06]} b4 {[%emt 0:00:03]} 78. Kb2 {[%emt 0:00:21]} b3 {[%emt 0:00:04]} 79. Kc1 {[%emt 0:01:45]} Kc3 {[%emt 0:00:07]} 80. Kb1 {[%emt 0:00:01]} b2 {[%emt 0:00:05]} 81. Ka2 {[%emt 0:00:02]} Kc2 {[%emt 0:00:05]} 82. Ka3 {[%emt 0:00:04]} b1=Q {[%emt 0:00:07]} 83. Ka4 {[%emt 0:00:04]} Kc3 {[%emt 0:00:07]} 84. Ka3 {[%emt 0:00:05]} Qa1# {[%emt 0:00:35] normal} 0-1

[Event "GER-ch Youth U12 2019"]
[Site "Willingen"]
[Date "2019.06.09"]
[Round "1.9"]
[White "Hecht, Jonas Christian"]
[Black "Hagenbeck-Huebert, Jan"]
[Result "1-0"]
[ECO "A17"]
[WhiteElo "1726"]
[BlackElo "1574"]
[Annotator "NA"]
[PlyCount "46"]
[EventDate "2019.06.07"]
[EventType "swiss"]
[EventRounds "9"]
[EventCountry "GER"]
[SourceTitle "playchess.com"]
[Source "ChessBase"]
[SourceQuality "1"]
[TimeControl "40/4500+30:900+30"]

1. c4 {[%emt 0:00:00]} e6 {[%emt 0:00:00]} 2. Nc3 {[%emt 0:00:00]} Nf6 {[%emt 0:00:00]} 3. g3 {[%emt 0:00:00]} d5 4. d4 {[%emt 0:00:00]} c6 {[%emt 0:00:00]} 5. cxd5 {[%emt 0:00:00]} exd5 {[%emt 0:00:00]} 6. Bg2 {[%emt 0:00:00]} Bd6 {[%emt 0:00:00]} 7. Nf3 {[%emt 0:00:00]} O-O {[%emt 0:00:00]} 8. O-O {[%emt 0:00:00]} Re8 {[%emt 0:00:00]} 9. Qc2 {[%emt 0:00:48]} Nbd7 {[%emt 0:03:46]} 10. a3 {[%emt 0:01:57]} Nf8 {[%emt 0:03:21]} 11. b4 {[%emt 0:03:30]} Qb6 {[%emt 0:04:48]} 12. Na4 {[%emt 0:05:29]} Qa6 {[%emt 0:04:34]} 13. Re1 {[%emt 0:16:33]} Ne6 {[%emt 0:09:32]} 14. e3 {[%emt 0:01:41]} b5 {[%emt 0:08:31]} 15. Nc5 {[%emt 0:05:51]} Bxc5 {[%emt 0:04:37]} 16. dxc5 {[%emt 0:01:16]} Qb7 {[%emt 0:02:14]} 17. Bb2 {[%emt 0:05:11]} Ne4 {[%emt 0:03:31]} 18. Ne5 {[%emt 0:07:29]} f6 {[%emt 0:02:01]} 19. Nf3 {[%emt 0:04:04]} N4g5 {[%emt 0:01:42]} 20. Nh4 {[%emt 0:02:56]} Nf7 {[%emt 0:02:57]} 21. Rad1 {[%emt 0:03:54]} Neg5 {[%emt 0:02:58]} 22. f4 {[%emt 0:04:25]} Ne4 {[%emt 0:01:18]} 23. Rd4 {[%emt 0:01:52]} f5 {[%emt 0:01:19] normal} 1-0